[Event "*** Titled Tuesday Blitz"]
[Site "Chess.com"]
[Date "2020.12.01"]
[Round "5"]
[White "Susal_De_Silva"]
[Black "Ajedrez_con_German"]
[Result "1-0"]
[WhiteElo "2651"]
[BlackElo "2471"]
[TimeControl "180+1"]
[EndTime "10:55:33 PST"]
[Termination "Susal_De_Silva won on time"]

1. e4 {[%clk 0:03:00.9]} 1... e5 {[%clk 0:02:51.6]} 2. Nf3 {[%clk 0:03:00.9]}
2... Nc6 {[%clk 0:02:50.9]} 3. Bb5 {[%clk 0:03:00.9]} 3... a6 {[%clk 0:02:50.5]}
4. Ba4 {[%clk 0:03:00.9]} 4... d6 {[%clk 0:02:50.5]} 5. O-O {[%clk 0:03:00.1]}
5... Bd7 {[%clk 0:02:47.2]} 6. d4 {[%clk 0:02:52.9]} 6... exd4 {[%clk
0:02:38.7]} 7. c3 {[%clk 0:02:50.2]} 7... d3 {[%clk 0:02:26.2]} 8. Bb3 {[%clk
0:02:44.4]} 8... Be7 {[%clk 0:02:19.1]} 9. Qxd3 {[%clk 0:02:36.4]} 9... Nf6
{[%clk 0:02:13.8]} 10. Bg5 {[%clk 0:02:35.6]} 10... O-O {[%clk 0:02:08.8]} 11.
Nbd2 {[%clk 0:02:33.9]} 11... Ng4 {[%clk 0:02:05.1]} 12. Bxe7 {[%clk 0:02:31.5]}
12... Qxe7 {[%clk 0:02:03.3]} 13. h3 {[%clk 0:02:30.1]} 13... Nge5 {[%clk
0:01:59.7]} 14. Nxe5 {[%clk 0:02:30.3]} 14... Nxe5 {[%clk 0:01:52.1]} 15. Qg3
{[%clk 0:02:29.8]} 15... Kh8 {[%clk 0:01:34.2]} 16. f4 {[%clk 0:02:26.4]} 16...
Ng6 {[%clk 0:01:28.4]} 17. f5 {[%clk 0:02:24.5]} 17... Ne5 {[%clk 0:01:27.6]}
18. f6 {[%clk 0:02:18.7]} 18... gxf6 {[%clk 0:01:26.4]} 19. Qh4 {[%clk
0:02:18.8]} 19... Be6 {[%clk 0:00:53.8]} 20. Rxf6 {[%clk 0:02:13.5]} 20... Bxb3
{[%clk 0:00:37.2]} 21. axb3 {[%clk 0:02:14.4]} 21... Nd7 {[%clk 0:00:33.1]} 22.
Rf4 {[%clk 0:02:10.7]} 22... Qxh4 {[%clk 0:00:32.4]} 23. Rxh4 {[%clk 0:02:11.6]}
23... Rae8 {[%clk 0:00:32.8]} 24. Rf1 {[%clk 0:02:10.6]} 24... Re6 {[%clk
0:00:28.8]} 25. Rhf4 {[%clk 0:02:09.1]} 25... f6 {[%clk 0:00:28.2]} 26. Nf3
{[%clk 0:02:08.6]} 26... Rfe8 {[%clk 0:00:27.3]} 27. Nd2 {[%clk 0:02:08.7]}
27... Kg7 {[%clk 0:00:26]} 28. Rg4+ {[%clk 0:02:07]} 28... Kh8 {[%clk
0:00:25.7]} 29. b4 {[%clk 0:02:07.3]} 29... b6 {[%clk 0:00:22]} 30. Rh4 {[%clk
0:02:04.1]} 30... a5 {[%clk 0:00:21.5]} 31. bxa5 {[%clk 0:01:34]} 31... bxa5
{[%clk 0:00:21]} 32. Rff4 {[%clk 0:01:34.7]} 32... Ne5 {[%clk 0:00:18.7]} 33.
Rh6 {[%clk 0:01:25.7]} 33... Ng6 {[%clk 0:00:17.8]} 34. Rf5 {[%clk 0:01:22.1]}
34... Kg7 {[%clk 0:00:16.8]} 35. Rhh5 {[%clk 0:01:21.5]} 35... Re5 {[%clk
0:00:16.5]} 36. Nf3 {[%clk 0:01:18.1]} 36... Rxf5 {[%clk 0:00:15.7]} 37. Rxf5
{[%clk 0:01:19]} 37... Ne5 {[%clk 0:00:15.1]} 38. Nd4 {[%clk 0:01:18.2]} 38...
c5 {[%clk 0:00:13]} 39. Nb5 {[%clk 0:01:17.2]} 39... Rd8 {[%clk 0:00:12.5]} 40.
Nc7 {[%clk 0:01:14.1]} 40... Rd7 {[%clk 0:00:11.4]} 41. Nd5 {[%clk 0:01:13.3]}
41... Rf7 {[%clk 0:00:10.2]} 42. Rf1 {[%clk 0:01:13.7]} 42... Nc4 {[%clk
0:00:09]} 43. b3 {[%clk 0:01:13.6]} 43... Nd2 {[%clk 0:00:08.7]} 44. Ra1 {[%clk
0:01:08.7]} 44... Nxb3 {[%clk 0:00:08.7]} 45. Ra3 {[%clk 0:01:09.2]} 45... Nd2
{[%clk 0:00:08.8]} 46. Rxa5 {[%clk 0:01:07.2]} 46... Nxe4 {[%clk 0:00:09]} 47.
Ra6 {[%clk 0:01:07.2]} 47... f5 {[%clk 0:00:08.2]} 48. c4 {[%clk 0:01:05.6]}
48... Nf6 {[%clk 0:00:07.5]} 49. Nf4 {[%clk 0:01:05.5]} 49... Rd7 {[%clk
0:00:06.5]} 50. Kh2 {[%clk 0:01:02.6]} 50... Kf7 {[%clk 0:00:06.8]} 51. Ra8
{[%clk 0:01:02.3]} 51... d5 {[%clk 0:00:06.9]} 52. Ra5 {[%clk 0:01:00.7]} 52...
d4 {[%clk 0:00:06.9]} 53. Nd3 {[%clk 0:00:59.6]} 53... Ne4 {[%clk 0:00:06.5]}
54. Ne5+ {[%clk 0:00:59.6]} 54... Ke6 {[%clk 0:00:06.4]} 55. Nxd7 {[%clk
0:00:59.5]} 55... Kxd7 {[%clk 0:00:06.9]} 56. Ra3 {[%clk 0:00:57.7]} 56... Nd2
{[%clk 0:00:04.2]} 57. Ra4 {[%clk 0:00:55.7]} 57... Kd6 {[%clk 0:00:04.6]} 58.
Kg3 {[%clk 0:00:56]} 58... Ke5 {[%clk 0:00:04.4]} 59. Kf2 {[%clk 0:00:55.8]}
59... Ke4 {[%clk 0:00:04.6]} 60. Ke2 {[%clk 0:00:54.9]} 60... Nb3 {[%clk
0:00:04.5]} 61. Ra8 {[%clk 0:00:54.2]} 61... d3+ {[%clk 0:00:04.7]} 62. Kd1
{[%clk 0:00:54.5]} 62... Kd4 {[%clk 0:00:05.3]} 63. Rf8 {[%clk 0:00:54.5]} 63...
Kxc4 {[%clk 0:00:02.3]} 64. Rxf5 {[%clk 0:00:53.5]} 1-0

[Event "*** Titled Tuesday Blitz"]
[Site "Chess.com"]
[Date "2020.12.01"]
[Round "5"]
[White "Volodar_Murzin"]
[Black "snowlord"]
[Result "0-1"]
[WhiteElo "2593"]
[BlackElo "2812"]
[TimeControl "180+1"]
[EndTime "10:55:34 PST"]
[Termination "snowlord won on time"]

1. e4 {[%clk 0:03:00.9]} 1... c5 {[%clk 0:02:58.1]} 2. Nf3 {[%clk 0:03:00.6]}
2... d6 {[%clk 0:02:58.7]} 3. d4 {[%clk 0:03:00.4]} 3... cxd4 {[%clk 0:02:59.6]}
4. Nxd4 {[%clk 0:03:01]} 4... Nf6 {[%clk 0:03:00.3]} 5. Nc3 {[%clk 0:03:01.2]}
5... a6 {[%clk 0:03:01]} 6. Be3 {[%clk 0:02:59]} 6... e5 {[%clk 0:03:01.3]} 7.
Nb3 {[%clk 0:02:58.1]} 7... Be6 {[%clk 0:03:00.7]} 8. f3 {[%clk 0:02:57.9]} 8...
Nbd7 {[%clk 0:03:00.2]} 9. Qd2 {[%clk 0:02:55.8]} 9... b5 {[%clk 0:03:00.6]} 10.
g4 {[%clk 0:02:53.4]} 10... Be7 {[%clk 0:02:55.8]} 11. g5 {[%clk 0:02:39.5]}
11... b4 {[%clk 0:02:56.1]} 12. gxf6 {[%clk 0:02:30.8]} 12... bxc3 {[%clk
0:02:55.8]} 13. Qxc3 {[%clk 0:02:31.4]} 13... Nxf6 {[%clk 0:02:51]} 14. O-O-O
{[%clk 0:02:31.5]} 14... O-O {[%clk 0:02:51.1]} 15. Na5 {[%clk 0:02:30.5]} 15...
Qe8 {[%clk 0:02:42.3]} 16. Nc6 {[%clk 0:02:25.7]} 16... Rc8 {[%clk 0:02:38.6]}
17. Nxe7+ {[%clk 0:02:23.8]} 17... Qxe7 {[%clk 0:02:39.5]} 18. Qa5 {[%clk
0:02:13.2]} 18... Rc6 {[%clk 0:02:40.2]} 19. b3 {[%clk 0:02:11.1]} 19... Rfc8
{[%clk 0:02:34.9]} 20. c4 {[%clk 0:02:09.2]} 20... Nh5 {[%clk 0:02:35]} 21. Rg1
{[%clk 0:02:07.7]} 21... Qf6 {[%clk 0:02:33.9]} 22. Be2 {[%clk 0:02:06]} 22...
Nf4 {[%clk 0:02:34.2]} 23. Bf1 {[%clk 0:02:06.1]} 23... Ng6 {[%clk 0:02:33.6]}
24. Rg3 {[%clk 0:01:57.2]} 24... h6 {[%clk 0:02:34.1]} 25. Kb1 {[%clk
0:01:46.4]} 25... Nf4 {[%clk 0:02:32.8]} 26. Rg1 {[%clk 0:01:34]} 26... Kh7
{[%clk 0:02:32.9]} 27. Rd2 {[%clk 0:01:29.7]} 27... g6 {[%clk 0:02:33]} 28. Qa3
{[%clk 0:01:28]} 28... Nh5 {[%clk 0:02:30.7]} 29. Be2 {[%clk 0:01:26.3]} 29...
Nf4 {[%clk 0:02:23.7]} 30. Bd1 {[%clk 0:01:25.2]} 30... Qh4 {[%clk 0:02:02]} 31.
Ka1 {[%clk 0:00:33.4]} 31... Nh3 {[%clk 0:01:53.8]} 32. Rh1 {[%clk 0:00:28.3]}
32... Nf4 {[%clk 0:01:53.8]} 33. Rxd6 {[%clk 0:00:19.6]} 33... Qh3 {[%clk
0:01:54.2]} 34. Rxc6 {[%clk 0:00:18.8]} 34... Rxc6 {[%clk 0:01:55.1]} 35. Qb2
{[%clk 0:00:18.9]} 35... Nd3 {[%clk 0:01:45.5]} 36. Qd2 {[%clk 0:00:18.9]} 36...
Rd6 {[%clk 0:01:46.2]} 37. Be2 {[%clk 0:00:16.9]} 37... Qg2 {[%clk 0:01:40.4]}
38. Rd1 {[%clk 0:00:13.5]} 38... Nb4 {[%clk 0:01:29.2]} 39. Qxb4 {[%clk
0:00:11.6]} 39... Qxe2 {[%clk 0:01:21.6]} 40. Qxd6 {[%clk 0:00:10.8]} 40... Qxe3
{[%clk 0:01:22.5]} 41. Qd3 {[%clk 0:00:11.1]} 41... Qf2 {[%clk 0:01:21.9]} 42.
Rd2 {[%clk 0:00:11.4]} 42... Qg1+ {[%clk 0:01:17.6]} 43. Kb2 {[%clk 0:00:11.8]}
43... h5 {[%clk 0:01:18.5]} 44. Qc3 {[%clk 0:00:12]} 44... Qc5 {[%clk
0:01:18.7]} 45. a3 {[%clk 0:00:10.4]} 45... a5 {[%clk 0:01:18.9]} 46. b4 {[%clk
0:00:09.2]} 46... axb4 {[%clk 0:01:19.8]} 47. axb4 {[%clk 0:00:10]} 47... Qa7
{[%clk 0:01:20.7]} 48. Kb3 {[%clk 0:00:08]} 48... Qa6 {[%clk 0:01:17.7]} 49. Ra2
{[%clk 0:00:06.4]} 49... Qc6 {[%clk 0:01:18]} 50. Qd3 {[%clk 0:00:06.5]} 50...
Qb6 {[%clk 0:01:16.9]} 51. Ra5 {[%clk 0:00:06.6]} 51... Qg1 {[%clk 0:01:16.4]}
52. Rxe5 {[%clk 0:00:05.8]} 52... Qxh2 {[%clk 0:01:16.8]} 53. Ra5 {[%clk
0:00:03.7]} 53... Qh1 {[%clk 0:01:16.1]} 54. Ra6 {[%clk 0:00:03.8]} 54... h4
{[%clk 0:01:14.9]} 55. b5 {[%clk 0:00:04.1]} 55... h3 {[%clk 0:01:10.8]} 56. Ra2
{[%clk 0:00:02.8]} 56... h2 {[%clk 0:01:08.1]} 57. b6 {[%clk 0:00:03.3]} 57...
Qg1 {[%clk 0:01:07.1]} 58. Rxh2+ {[%clk 0:00:02.6]} 58... Qxh2 {[%clk
0:01:07.2]} 59. Kb4 {[%clk 0:00:03.5]} 59... Qb2+ {[%clk 0:01:06.4]} 60. Kc5
{[%clk 0:00:03.8]} 60... Qe5+ {[%clk 0:01:05.6]} 61. Kc6 {[%clk 0:00:04]} 61...
Qb8 {[%clk 0:01:05.7]} 62. c5 {[%clk 0:00:04]} 62... Qc8+ {[%clk 0:01:04.2]} 63.
Kb5 {[%clk 0:00:03.5]} 63... Bd7+ {[%clk 0:01:04.7]} 64. Kb4 {[%clk 0:00:04]}
64... Qc6 {[%clk 0:01:03.8]} 65. Qd5 {[%clk 0:00:03.3]} 65... Qb5+ {[%clk
0:01:04]} 66. Kc3 {[%clk 0:00:03.6]} 66... Be6 {[%clk 0:01:04.6]} 67. Qd6 {[%clk
0:00:02.7]} 67... Qb3+ {[%clk 0:01:02.1]} 68. Kd4 {[%clk 0:00:02.6]} 68... Qxf3
{[%clk 0:01:01.6]} 69. c6 {[%clk 0:00:02.8]} 69... Qf2+ {[%clk 0:01:01.4]} 70.
Ke5 {[%clk 0:00:02.5]} 70... Qxb6 {[%clk 0:01:02.3]} 71. Qf8 {[%clk 0:00:01]}
71... Qxc6 {[%clk 0:01:00.7]} 72. Kf6 {[%clk 0:00:01.5]} 72... Qc3+ {[%clk
0:01:00.4]} 73. Kg5 {[%clk 0:00:00.9]} 73... Qe5+ {[%clk 0:00:59]} 0-1

[Event "*** Titled Tuesday Blitz"]
[Site "Chess.com"]
[Date "2020.12.01"]
[Round "5"]
[White "paulrusan"]
[Black "Angel_Hranitel_37"]
[Result "1-0"]
[WhiteElo "2265"]
[BlackElo "2457"]
[TimeControl "180+1"]
[EndTime "10:55:35 PST"]
[Termination "paulrusan won on time"]

1. e4 {[%clk 0:03:00.9]} 1... c5 {[%clk 0:01:50.5]} 2. b4 {[%clk 0:02:59.7]}
2... cxb4 {[%clk 0:01:50.4]} 3. Bb2 {[%clk 0:02:59.9]} 3... Nc6 {[%clk
0:01:49.3]} 4. d4 {[%clk 0:02:59.8]} 4... d5 {[%clk 0:01:50]} 5. exd5 {[%clk
0:03:00.2]} 5... Qxd5 {[%clk 0:01:50.9]} 6. c4 {[%clk 0:03:00.6]} 6... bxc3
{[%clk 0:01:50.9]} 7. Nxc3 {[%clk 0:03:01]} 7... Qa5 {[%clk 0:01:51.4]} 8. d5
{[%clk 0:03:01.4]} 8... Nb8 {[%clk 0:01:49.1]} 9. Nf3 {[%clk 0:03:00.7]} 9... e6
{[%clk 0:01:49.2]} 10. Bb5+ {[%clk 0:02:59.1]} 10... Bd7 {[%clk 0:01:48.9]} 11.
Bxd7+ {[%clk 0:02:53.9]} 11... Nxd7 {[%clk 0:01:49.8]} 12. dxe6 {[%clk
0:02:54.3]} 12... fxe6 {[%clk 0:01:50.5]} 13. O-O {[%clk 0:02:53.2]} 13... Ngf6
{[%clk 0:01:50.4]} 14. Qe2 {[%clk 0:02:51.6]} 14... e5 {[%clk 0:01:47.2]} 15.
Rfe1 {[%clk 0:02:43.5]} 15... Bb4 {[%clk 0:00:57]} 16. Nxe5 {[%clk 0:02:36.9]}
16... Nxe5 {[%clk 0:00:57.4]} 17. Qxe5+ {[%clk 0:02:36.2]} 17... Qxe5 {[%clk
0:00:58.3]} 18. Rxe5+ {[%clk 0:02:36.3]} 18... Kf7 {[%clk 0:00:58.7]} 19. Rb5
{[%clk 0:02:24.5]} 19... Be7 {[%clk 0:00:59]} 20. Rxb7 {[%clk 0:02:10.2]} 20...
Rab8 {[%clk 0:00:59.4]} 21. Rxb8 {[%clk 0:01:59.1]} 21... Rxb8 {[%clk
0:01:00.3]} 22. Rb1 {[%clk 0:01:59.4]} 22... Rb6 {[%clk 0:00:55.8]} 23. Ba1
{[%clk 0:01:55.7]} 23... Rc6 {[%clk 0:00:42.5]} 24. Kf1 {[%clk 0:01:48]} 24...
a5 {[%clk 0:00:38.8]} 25. Rb7 {[%clk 0:01:36]} 25... Kf8 {[%clk 0:00:25.7]} 26.
Ke2 {[%clk 0:01:32.5]} 26... Bb4 {[%clk 0:00:26.2]} 27. Kd3 {[%clk 0:01:32.8]}
27... Ng4 {[%clk 0:00:23.7]} 28. Ne4 {[%clk 0:01:11.3]} 28... Rg6 {[%clk
0:00:11]} 29. h3 {[%clk 0:01:03.2]} 29... Nh2 {[%clk 0:00:10.5]} 30. g4 {[%clk
0:00:54.8]} 30... Nf3 {[%clk 0:00:09.3]} 31. a4 {[%clk 0:00:48]} 31... Nh4
{[%clk 0:00:09.6]} 32. f4 {[%clk 0:00:45.9]} 32... Rc6 {[%clk 0:00:03.7]} 33.
Bxg7+ {[%clk 0:00:43.3]} 33... Ke8 {[%clk 0:00:03.5]} 34. Nf6+ {[%clk
0:00:33.4]} 34... Kd8 {[%clk 0:00:04]} 35. Nxh7 {[%clk 0:00:29.1]} 35... Ng2
{[%clk 0:00:04.5]} 36. f5 {[%clk 0:00:28.3]} 36... Nf4+ {[%clk 0:00:03.9]} 37.
Ke4 {[%clk 0:00:28.6]} 37... Rc4+ {[%clk 0:00:04.3]} 38. Kf3 {[%clk 0:00:28.3]}
38... Nxh3 {[%clk 0:00:04.1]} 39. Be5 {[%clk 0:00:20.1]} 39... Ng1+ {[%clk
0:00:03]} 40. Kg2 {[%clk 0:00:19.9]} 40... Rxg4+ {[%clk 0:00:02.2]} 41. Kh2
{[%clk 0:00:18.2]} 41... Nf3+ {[%clk 0:00:02.5]} 42. Kh3 {[%clk 0:00:18.6]}
42... Nxe5 {[%clk 0:00:03.4]} 43. Rb5 {[%clk 0:00:17.5]} 43... Rg7 {[%clk
0:00:03.5]} 44. Nf6 {[%clk 0:00:15.2]} 44... Nc6 {[%clk 0:00:02.7]} 45. Nd5
{[%clk 0:00:13.7]} 45... Na7 {[%clk 0:00:01.7]} 46. Rb8+ {[%clk 0:00:11.1]}
46... Nc8 {[%clk 0:00:02.6]} 47. f6 {[%clk 0:00:10.1]} 47... Rd7 {[%clk
0:00:03.2]} 48. Nb6 {[%clk 0:00:07]} 48... Rc7 {[%clk 0:00:03.1]} 49. Kg4 {[%clk
0:00:06.3]} 49... Bc5 {[%clk 0:00:02.7]} 50. Nxc8 {[%clk 0:00:06.1]} 50... Rxc8
{[%clk 0:00:00.9]} 51. Rb5 {[%clk 0:00:02.8]} 1-0

[Event "*** Titled Tuesday Blitz"]
[Site "Chess.com"]
[Date "2020.12.01"]
[Round "5"]
[White "Durarbayli"]
[Black "gilbert_gm"]
[Result "1-0"]
[WhiteElo "2755"]
[BlackElo "2557"]
[TimeControl "180+1"]
[EndTime "10:55:36 PST"]
[Termination "Durarbayli won on time"]

1. e4 {[%clk 0:03:00.9]} 1... e5 {[%clk 0:02:56.4]} 2. Nc3 {[%clk 0:02:59.9]}
2... g6 {[%clk 0:02:54.9]} 3. Bc4 {[%clk 0:02:55.8]} 3... Bg7 {[%clk 0:02:55]}
4. d3 {[%clk 0:02:47.5]} 4... Ne7 {[%clk 0:02:54]} 5. h4 {[%clk 0:02:41.1]} 5...
h6 {[%clk 0:02:46.6]} 6. Nge2 {[%clk 0:02:38.9]} 6... c6 {[%clk 0:02:38.5]} 7.
h5 {[%clk 0:02:29.9]} 7... g5 {[%clk 0:02:31.2]} 8. d4 {[%clk 0:02:29.5]} 8...
exd4 {[%clk 0:02:21]} 9. Nxd4 {[%clk 0:02:30.4]} 9... d5 {[%clk 0:02:20.8]} 10.
exd5 {[%clk 0:02:28.8]} 10... cxd5 {[%clk 0:02:17.9]} 11. Bb3 {[%clk 0:02:16.1]}
11... Nbc6 {[%clk 0:02:16.9]} 12. Be3 {[%clk 0:02:15.7]} 12... O-O {[%clk
0:02:07.3]} 13. Qd2 {[%clk 0:02:03.2]} 13... Nxd4 {[%clk 0:01:45.2]} 14. Bxd4
{[%clk 0:02:02.8]} 14... Bxd4 {[%clk 0:01:31]} 15. Qxd4 {[%clk 0:02:03.7]} 15...
Nc6 {[%clk 0:01:17.5]} 16. Qxd5 {[%clk 0:01:45.9]} 16... Re8+ {[%clk 0:01:17.1]}
17. Kf1 {[%clk 0:01:44.8]} 17... Be6 {[%clk 0:01:06.7]} 18. Qxd8 {[%clk
0:01:11.6]} 18... Raxd8 {[%clk 0:01:07.6]} 19. Rd1 {[%clk 0:00:59.2]} 19... Nd4
{[%clk 0:00:23]} 20. Bxe6 {[%clk 0:00:53.5]} 20... Nxe6 {[%clk 0:00:17.3]} 21.
g3 {[%clk 0:00:22.3]} 21... Nd4 {[%clk 0:00:12.4]} 22. Rd2 {[%clk 0:00:21.1]}
22... Nf3 {[%clk 0:00:08.9]} 23. Rxd8 {[%clk 0:00:21]} 23... Rxd8 {[%clk
0:00:09.8]} 24. Kg2 {[%clk 0:00:20.5]} 24... g4 {[%clk 0:00:08.5]} 25. Rd1
{[%clk 0:00:19.8]} 25... Re8 {[%clk 0:00:06.7]} 26. Kf1 {[%clk 0:00:18.6]} 26...
f5 {[%clk 0:00:06.3]} 27. Nd5 {[%clk 0:00:18.1]} 27... Kf7 {[%clk 0:00:06.2]}
28. Ne3 {[%clk 0:00:17.7]} 28... Ke6 {[%clk 0:00:05.5]} 29. c3 {[%clk
0:00:15.8]} 29... Rc8 {[%clk 0:00:05.4]} 30. Ke2 {[%clk 0:00:15.7]} 30... Ne5
{[%clk 0:00:05.5]} 31. Rd4 {[%clk 0:00:13.8]} 31... Rf8 {[%clk 0:00:05]} 32. Rb4
{[%clk 0:00:12.1]} 32... b6 {[%clk 0:00:04.9]} 33. Ra4 {[%clk 0:00:12.4]} 33...
Rf7 {[%clk 0:00:04.7]} 34. Rf4 {[%clk 0:00:12.3]} 34... Nd7 {[%clk 0:00:03.7]}
35. Rd4 {[%clk 0:00:12.3]} 35... Ne5 {[%clk 0:00:03.8]} 36. Ng2 {[%clk
0:00:12.6]} 36... Nf3 {[%clk 0:00:04.1]} 37. Nf4+ {[%clk 0:00:13.5]} 37... Ke7
{[%clk 0:00:04.6]} 38. Rd5 {[%clk 0:00:12.4]} 38... Kf6 {[%clk 0:00:04.9]} 39.
Ng6 {[%clk 0:00:11.1]} 39... Rc7 {[%clk 0:00:04.4]} 40. Rd6+ {[%clk 0:00:10.9]}
40... Kf7 {[%clk 0:00:04.6]} 41. Ke3 {[%clk 0:00:08.9]} 41... Rc4 {[%clk
0:00:02.5]} 42. Rd7+ {[%clk 0:00:07.7]} 42... Kf6 {[%clk 0:00:02.9]} 43. Rxa7
{[%clk 0:00:07.8]} 43... Rc6 {[%clk 0:00:03.4]} 44. Nf4 {[%clk 0:00:06.6]} 44...
Rc5 {[%clk 0:00:03.8]} 45. Kd3 {[%clk 0:00:06.7]} 45... Re5 {[%clk 0:00:03.6]}
46. Rb7 {[%clk 0:00:07.2]} 46... Re1 {[%clk 0:00:03.8]} 47. Kc2 {[%clk
0:00:07.4]} 47... Rf1 {[%clk 0:00:03.7]} 48. Rxb6+ {[%clk 0:00:07.8]} 48... Kg7
{[%clk 0:00:03.6]} 49. Rg6+ {[%clk 0:00:07.2]} 49... Kh7 {[%clk 0:00:01.6]} 50.
Nd3 {[%clk 0:00:07.9]} 1-0

[Event "*** Titled Tuesday Blitz"]
[Site "Chess.com"]
[Date "2020.12.01"]
[Round "5"]
[White "vanea_03"]
[Black "Euwe1234"]
[Result "1-0"]
[WhiteElo "2731"]
[BlackElo "2551"]
[TimeControl "180+1"]
[EndTime "10:55:37 PST"]
[Termination "vanea_03 won on time"]

1. d4 {[%clk 0:03:00.9]} 1... d5 {[%clk 0:02:59.8]} 2. c4 {[%clk 0:03:00.4]}
2... c6 {[%clk 0:03:00.1]} 3. cxd5 {[%clk 0:03:00.4]} 3... cxd5 {[%clk 0:03:01]}
4. Bf4 {[%clk 0:03:00.7]} 4... Nc6 {[%clk 0:02:57.1]} 5. e3 {[%clk 0:03:01.2]}
5... Nf6 {[%clk 0:02:55.3]} 6. Bb5 {[%clk 0:03:01.4]} 6... Bg4 {[%clk
0:02:36.8]} 7. Bxc6+ {[%clk 0:02:46.8]} 7... bxc6 {[%clk 0:02:33.7]} 8. Qc2
{[%clk 0:02:46.2]} 8... Rc8 {[%clk 0:02:30.4]} 9. h3 {[%clk 0:02:39.9]} 9... Bh5
{[%clk 0:02:29]} 10. Nc3 {[%clk 0:02:29.4]} 10... e6 {[%clk 0:02:28.4]} 11. Nf3
{[%clk 0:02:06.2]} 11... Be7 {[%clk 0:02:24.3]} 12. Ne5 {[%clk 0:02:02]} 12...
Nd7 {[%clk 0:02:20.8]} 13. Nxd7 {[%clk 0:01:56.3]} 13... Qxd7 {[%clk 0:02:19.6]}
14. Na4 {[%clk 0:01:52.9]} 14... Bb4+ {[%clk 0:02:18.3]} 15. Kf1 {[%clk
0:01:53]} 15... Bg6 {[%clk 0:02:14.7]} 16. Qc1 {[%clk 0:01:47]} 16... c5 {[%clk
0:02:10.2]} 17. Nxc5 {[%clk 0:01:45]} 17... Bxc5 {[%clk 0:02:08.7]} 18. dxc5
{[%clk 0:01:41.3]} 18... Qb5+ {[%clk 0:02:08.2]} 19. Kg1 {[%clk 0:01:41.3]}
19... Rxc5 {[%clk 0:02:09.1]} 20. Qd2 {[%clk 0:01:32.1]} 20... Rc2 {[%clk
0:02:04.9]} 21. Qd4 {[%clk 0:01:24.6]} 21... O-O {[%clk 0:01:59.5]} 22. b3
{[%clk 0:01:13.9]} 22... Qe2 {[%clk 0:01:56]} 23. Bg3 {[%clk 0:01:04.3]} 23...
Rxa2 {[%clk 0:01:53.7]} 24. Rxa2 {[%clk 0:01:03.8]} 24... Qxa2 {[%clk
0:01:54.6]} 25. Kh2 {[%clk 0:01:00.2]} 25... Qxb3 {[%clk 0:01:51.8]} 26. Qxa7
{[%clk 0:00:59.7]} 26... h6 {[%clk 0:01:51]} 27. Rc1 {[%clk 0:00:58.3]} 27...
Qb2 {[%clk 0:01:45.4]} 28. Rc7 {[%clk 0:00:53.9]} 28... h5 {[%clk 0:01:36.7]}
29. Qc5 {[%clk 0:00:45.7]} 29... Qf6 {[%clk 0:01:29.3]} 30. h4 {[%clk
0:00:41.9]} 30... Bf5 {[%clk 0:01:20.3]} 31. Rc8 {[%clk 0:00:35.3]} 31... Rxc8
{[%clk 0:01:19.5]} 32. Qxc8+ {[%clk 0:00:36.2]} 32... Kh7 {[%clk 0:01:19.9]} 33.
Qc7 {[%clk 0:00:34.6]} 33... Qg6 {[%clk 0:01:11.5]} 34. Qe5 {[%clk 0:00:30.8]}
34... f6 {[%clk 0:01:09.5]} 35. Qd6 {[%clk 0:00:30.2]} 35... Qf7 {[%clk
0:01:07.4]} 36. Qc7 {[%clk 0:00:29.3]} 36... Qe8 {[%clk 0:01:06]} 37. f3 {[%clk
0:00:27.8]} 37... Qa4 {[%clk 0:01:03.1]} 38. Qd6 {[%clk 0:00:17.9]} 38... Qb3
{[%clk 0:00:59.1]} 39. Bf4 {[%clk 0:00:14.8]} 39... e5 {[%clk 0:00:51.9]} 40.
Bg3 {[%clk 0:00:15.3]} 40... Qd3 {[%clk 0:00:42.2]} 41. Bf2 {[%clk 0:00:11.6]}
41... e4 {[%clk 0:00:39.4]} 42. Qf4 {[%clk 0:00:06.2]} 42... exf3 {[%clk
0:00:33.8]} 43. gxf3 {[%clk 0:00:06.3]} 43... Bg6 {[%clk 0:00:29.7]} 44. Qd4
{[%clk 0:00:06]} 44... Qf1 {[%clk 0:00:24.4]} 45. Kg3 {[%clk 0:00:04.5]} 45...
Bf5 {[%clk 0:00:22.1]} 46. Qxd5 {[%clk 0:00:02.3]} 46... Qh3+ {[%clk 0:00:11.7]}
47. Kf4 {[%clk 0:00:02.2]} 47... Kg6 {[%clk 0:00:11.6]} 48. Bg3 {[%clk
0:00:03.1]} 48... Bb1 {[%clk 0:00:07.2]} 49. e4 {[%clk 0:00:03.4]} 49... Qh1
{[%clk 0:00:05.5]} 50. Qd2 {[%clk 0:00:03.8]} 50... Qf1 {[%clk 0:00:01.1]} 51.
Bf2 {[%clk 0:00:02.8]} 51... Qb5 {[%clk 0:00:01.2]} 52. Ke3 {[%clk 0:00:03.7]}
1-0